bitfinex-derivatives/quotes_SOLF0:USTF0_20250818
["timestamp","ask_amount","ask_price","bid_price","bid_amount"]
[1755498364693,2.87,181.16,181.07,1.61]
[1755498365092,2.87,181.14,181.07,1.61]
[1755498365602,2.87,181.14,181.13,5.5173]
[1755498366300,2.87,181.17,181.11,1.61]
[1755498367097,2.87,181.17,181.16,5.5163]
[1755498368502,2.87,181.23,181.13,1.61]
[1755498368894,2.87,181.21,181.17,5.5158]
[1755498369094,2.87,181.21,181.13,1.61]
[1755498369993,370.46,181.27,181.1,1.61]
[1755498369994,2.87,181.2,181.1,1.61]
[1755498370597,2.87,181.2,181.17,5.5158]
[1755498370799,2.87,181.26,181.14,1.61]
[1755498371107,2.87,181.23,181.17,1.61]
[1755498372100,2.87,181.23,181.12,13.63512006]
[1755498372299,4.19125962,181.22,181.1,1.61]
[1755498372499,4.19125962,181.21,181.1,1.61]
[1755498372696,2.87,181.2,181.1,1.61]
[1755498373100,2.87,181.2,181.05,1.61]
[1755498373991,2.87,181.2,181.1,1.61]
[1755498375192,2.87,181.2,181.13,5.5173]
[1755498375600,2.87,181.2,181.1,1.61]
[1755498376504,2.87,181.2,181.13,5.5173]
[1755498376704,2.87,181.2,181.1,1.61]
[1755498377204,2.87,181.2,181.12,5.5174]
[1755498377401,2.87,181.2,181.08,1.61]
[1755498377810,2.87,181.2,181.11,5.5178]
[1755498378007,2.87,181.2,181.08,1.61]
[1755498378207,2.87,181.2,181.12,5.5174]
[1755498379402,4.18412101,181.19,181.11,5.5178]
[1755498379611,2.87,181.17,181.05,1.61]
[1755498380209,5.5173,181.13,181.1,5.5179]
[1755498380412,2.87,181.12,181.05,1.61]
[1755498380610,2.87,181.12,181.08,5.5187]
[1755498381308,2.87,181.1,181.09,5.5185]
[1755498382809,3.01,181.13,181.07,1.6]
[1755498383308,3.01,181.19,181.05,1.6]
[1755498383509,3.01,181.17,181.05,1.6]
[1755498383809,7.10850892,181.2,181.09,5.5185]
[1755498384007,3.01,181.13,181.01,377.76850892]
[1755498384313,3.01,181.13,181.07,1.6]
[1755498385015,3.01,181.19,181.07,1.6]
[1755498385215,3.01,181.17,181.07,1.6]
[1755498385413,5.5169,181.15,181.11,5.5178]
[1755498385615,3.01,181.14,181.1,1.6]
[1755498385814,3.01,181.14,181.02,7.10850892]
[1755498386119,3.01,181.14,181.06,7.10850892]
[1755498386310,387.27,181.23,181.12,1.6]
[1755498386507,5.5163,181.17,181.12,7.1174]
[1755498386708,3.01,181.15,181.12,7.1174]
[1755498387417,3.01,181.16,181.05,7.10850892]
[1755498387617,3.01,181.16,181.06,1.6]
[1755498388006,3.01,181.16,181.14,5.5167]
[1755498388418,3.01,181.16,181.14,7.1167]
[1755498388612,3.01,181.16,181.14,1.6]
[1755498388814,3.01,181.16,181.15,5.5166]
[1755498389116,3.01,181.16,181.14,1.6]
[1755498389412,3.01,181.16,181.15,5.5167]
[1755498389615,122.26096513,181.26,181.05,7.10850892]
[1755498389813,3.01,181.21,181.18,1.6]
[1755498390014,3.01,181.21,181.18,7.1155]
[1755498390215,122.26096513,181.26,181.18,7.1155]
[1755498390414,3.01,181.2,181.18,7.1155]
[1755498390719,122.26096513,181.26,181.18,1.6]
[1755498390918,3.01,181.24,181.18,1.6]
[1755498391312,3.01,181.24,181.21,1.6]
[1755498391511,3.01,181.24,181.22,1.6]
[1755498391816,3.01,181.24,181.22,7.1143]
[1755498392015,122.26096513,181.26,181.22,5.5143]
[1755498392321,3.01,181.23,181.22,5.5143]
[1755498393118,3.01,181.25,181.18,1.6]
[1755498393313,7.10850892,181.35,181.22,1.6]
[1755498393314,3.01,181.27,181.22,1.6]
[1755498393717,3.01,181.26,181.25,5.5134]
[1755498395011,3.01,181.25,181.19,1.6]
[1755498395422,5.5142,181.23,181.18,5.5154]
[1755498395715,3.01,181.22,181.15,1.6]
[1755498395914,8.5247,181.22,181.17,5.5158]
[1755498396120,5.5147,181.22,181.17,5.5158]
[1755498396318,3.01,181.29,181.17,5.5158]
[1755498396520,3.01,181.27,181.17,5.5158]
[1755498396720,3.01,181.25,181.17,5.5158]
[1755498396921,3.01,181.23,181.16,5.5163]
[1755498397124,3.01,181.21,181.14,370.72]
[1755498397422,3.01,181.26,181.16,5.5161]
[1755498397618,3.01,181.24,181.15,1.6]
[1755498397815,3.01,181.2,181.15,1.6]
[1755498398016,3.01,181.26,181.15,1.6]
[1755498398221,3.01,181.24,181.14,370.72]
[1755498398416,3.01,181.18,181.13,1.6]
[1755498398921,3.01,181.26,181.13,1.6]
[1755498399119,3.01,181.24,181.13,1.6]
[1755498399320,5.5153,181.2,181.12,1.6]
[1755498399520,3.01,181.19,181.12,1.6]
[1755498399917,6.12136422,181.27,181.12,1.6]
[1755498399918,3.01,181.17,181.12,1.6]
[1755498400313,5.5158,181.18,181.14,5.5168]
[1755498400518,3.01,181.16,181.13,1.6]
[1755498400914,3.01,181.15,181.13,1.6]
[1755498401121,3.01,181.17,181.11,1.6]
[1755498401321,3.01,181.21,181.12,1.6]
[1755498402523,3.01,181.23,181.16,1.6]
[1755498402719,6.12136422,181.32,181.16,1.6]
[1755498402921,3.01,181.3,181.2,1.6]
[1755498403121,3.01,181.28,181.2,1.6]
[1755498403620,3.01,181.26,181.19,7.10850892]
[1755498403816,3.01,181.26,181.2,1.6]
[1755498404425,3.01,181.26,181.25,5.5136]
[1755498405022,3.01,181.33,181.19,8.70850892]
[1755498405326,3.01,181.31,181.19,8.70850892]
[1755498405524,5.5129,181.28,181.23,5.5139]
[1755498405729,6.12136422,181.35,181.19,8.70850892]
[1755498405730,4.20334804,181.27,181.19,8.70850892]
[1755498405925,3.01,181.29,181.19,1.6]
[1755498406117,3.01,181.23,181.16,1.6]
[1755498407227,3.01,181.22,181.21,5.5146]
[1755498407620,3.01,181.22,181.19,5.5152]
[1755498407825,3.01,181.22,181.16,1.6]
[1755498408228,3.01,181.22,181.19,5.5153]
[1755498408827,3.01,181.22,181.18,5.5157]
[1755498409129,3.01,181.22,181.12,1.6]
[1755498409327,3.01,181.22,181.17,5.516]
[1755498409529,3.01,181.22,181.15,1.6]
[1755498410420,3.01,181.22,181.13,1.6]
[1755498412026,3.01,181.22,181.14,1.6]
[1755498412630,7.10850892,181.3,181.13,7.10850892]
[1755498412826,3.13,181.21,181.18,1.61]
[1755498413030,3.13,181.2,181.18,1.61]
[1755498413227,3.13,181.2,181.19,5.5152]
[1755498414926,3.13,181.29,181.14,1.61]
[1755498415133,3.13,181.27,181.11,1.61]
[1755498415331,3.13,181.25,181.14,5.5167]
[1755498415532,3.13,181.23,181.14,5.5167]
[1755498415734,3.13,181.21,181.11,1.61]
[1755498416127,3.13,181.21,181.13,1.61]
[1755498416823,3.13,181.21,181.1,1.61]
[1755498417326,3.13,181.21,181.14,5.5167]
[1755498417532,3.13,181.21,181.1,1.61]
[1755498417727,5.5156,181.19,181.15,5.5166]
[1755498417932,3.13,181.18,181.15,5.5166]
[1755498418133,3.13,181.18,181.1,1.61]
[1755498418731,3.13,181.17,181.14,5.5168]
[1755498418927,7.10850892,181.26,181.14,5.5168]
[1755498419129,3.13,181.15,181.14,5.5168]
[1755498420328,3.13,181.28,181.14,0.56]
[1755498420527,3.13,181.26,181.15,1.61]
[1755498420833,5.5143,181.23,181.18,5.5157]
[1755498421136,3.13,181.22,181.18,5.5157]
[1755498421537,3.13,181.22,181.19,5.5154]
[1755498421736,6.12136422,181.3,181.19,5.5154]
[1755498421932,3.13,181.2,181.19,5.5154]
[1755498422624,6.12136422,181.3,181.19,5.5154]
[1755498422625,3.13,181.29,181.19,7.10850892]
[1755498422825,3.13,181.27,181.2,1.61]
[1755498424737,3.13,181.3,181.2,1.61]
[1755498424942,3.13,181.28,181.2,1.61]
[1755498425340,3.13,181.27,181.26,5.5131]
[1755498428844,6.12136422,181.36,181.19,7.10850892]
[1755498429042,3.13,181.29,181.27,1.61]
[1755498429242,6.12136422,181.37,181.27,1.61]
[1755498429545,3.13,181.35,181.24,1.61]
[1755498429842,3.13,181.33,181.24,1.61]
[1755498430043,3.13,181.3,181.26,5.5132]
[1755498430437,5.512,181.31,181.27,5.513]
[1755498430743,3.13,181.28,181.27,5.513]
[1755498431840,3.13,181.31,181.28,5.5126]
[1755498432052,6.12136422,181.37,181.28,1.61]
[1755498432247,3.13,181.3,181.28,1.61]
[1755498432445,5.5114,181.33,181.28,7.1225]
[1755498432745,3.13,181.3,181.18,1.61]
[1755498433046,3.13,181.26,181.2,1.61]
[1755498433560,3.13,181.26,181.22,5.5143]
[1755498433746,3.13,181.26,181.2,1.61]
[1755498434148,8.6435,181.26,181.21,5.5146]
[1755498434354,3.13,181.25,181.2,1.61]
[1755498434652,6.12136422,181.34,181.21,1.61]
[1755498434653,5.5132,181.27,181.21,1.61]
[1755498434857,6.12136422,181.34,181.19,7.10850892]
[1755498435153,3.13,181.32,181.2,1.61]
[1755498435452,3.13,181.27,181.24,5.5139]
[1755498435655,3.13,181.27,181.17,370.6]
[1755498435849,3.13,181.27,181.19,1.61]
[1755498436242,3.13,181.27,181.23,5.514]
[1755498437054,3.13,181.27,181.24,5.5138]
[1755498438456,3.13,181.27,181.23,5.5141]
[1755498438955,3.13,181.26,181.23,5.5141]
[1755498443959,3.13,181.26,181.22,5.5144]
[1755498445251,3.13,181.26,181.23,5.5142]
[1755498448455,5.5132,181.27,181.24,5.5139]
[1755498448657,3.17,181.25,181.24,5.5139]
[1755498449665,3.17,181.29,181.27,1.59]
[1755498449864,6.12136422,181.36,181.27,4.56222241]
[1755498450165,3.17,181.31,181.29,7.1022]
[1755498450351,4.24570737,181.3,181.29,7.1022]
[1755498450552,7.41570737,181.3,181.29,7.1022]
[1755498451164,4.24570737,181.3,181.29,7.1022]
[1755498452069,3.17,181.32,181.3,7.1019]
[1755498452362,4.24403739,181.31,181.3,7.1019]
[1755498454167,3.17,181.32,181.3,7.1019]
[1755498455055,6.12136422,181.42,181.31,1.59]
[1755498455255,3.17,181.34,181.33,1.59]
[1755498455459,3.17,181.42,181.28,1.59]
[1755498455763,3.17,181.36,181.22,1.59]
[1755498455967,3.17,181.34,181.22,1.59]
[1755498456267,3.17,181.32,181.22,1.59]
[1755498456470,3.17,181.3,181.22,1.59]
[1755498456764,3.17,181.3,181.23,1.59]
[1755498457266,3.17,181.3,181.25,5.5134]
[1755498457565,3.17,181.26,181.21,6.15222241]
[1755498457959,3.17,181.26,181.23,5.514]
[1755498458158,3.17,181.25,181.23,1.59]
[1755498458660,3.17,181.25,181.24,5.5139]
[1755498460471,3.17,181.29,181.22,1.59]
[1755498461159,3.17,181.28,181.27,5.513]
[1755498461860,3.17,181.28,181.26,5.5132]
[1755498462165,3.17,181.27,181.26,5.5132]
[1755498462766,3.17,181.27,181.17,11.0316]
[1755498462767,3.17,181.27,181.18,1.59]
[1755498462965,3.17,181.27,181.2,1.59]
[1755498463355,3.17,181.27,181.24,5.5137]
[1755498463562,3.17,181.32,181.22,1.59]
[1755498463868,3.17,181.3,181.22,1.59]
[1755498464070,3.17,181.28,181.22,1.59]
[1755498465063,3.17,181.28,181.24,5.5137]
[1755498465971,3.17,181.28,181.17,11.0316]
[1755498465972,3.17,181.27,181.16,146.06]
[1755498466165,4.2492626,181.26,181.16,4.56222241]
[1755498466474,4.26378125,181.25,181.19,5.5154]
[1755498466660,3.17,181.22,181.2,1.59]
[1755498466862,3.17,181.22,181.21,1.59]
[1755498467069,3.17,181.22,181.21,5.5148]
[1755498468367,3.17,181.31,181.22,1.59]
[1755498468567,3.17,181.29,181.22,1.59]
[1755498468769,3.17,181.27,181.25,5.5133]
[1755498469364,3.17,181.27,181.26,5.5133]
[1755498469569,3.17,181.26,181.21,6.15222241]
[1755498469771,3.17,181.25,181.19,4.56222241]
[1755498469966,27.21358663,181.34,181.25,5.5133]
[1755498470165,4.26456026,181.33,181.25,5.5133]
[1755498470365,4.26456026,181.32,181.22,4.56222241]
[1755498470669,4.26456026,181.31,181.26,1.59]
[1755498470867,4.26456026,181.3,181.26,1.59]
[1755498471065,3.17,181.3,181.28,4.56222241]
[1755498471267,3.17,181.3,181.29,5.5124]
[1755498471463,3.17,181.3,181.26,1.59]
[1755498471669,3.17,181.3,181.25,4.56222241]
[1755498471864,3.17,181.3,181.26,1.59]
[1755498472174,3.17,181.3,181.29,5.5124]
[1755498473564,6.12136422,181.37,181.25,4.56222241]
[1755498473772,2.88,181.29,181.25,4.56222241]
[1755498474171,2.88,181.29,181.26,5.5131]
[1755498474678,5.512,181.31,181.25,4.56222241]
[1755498474872,2.88,181.27,181.26,5.5133]
[1755498475782,2.88,181.29,181.26,1.6]
[1755498476078,2.88,181.28,181.25,4.56222241]
[1755498476272,2.88,181.28,181.27,1.6]
[1755498476472,2.88,181.28,181.27,5.513]
[1755498476678,2.88,181.28,181.25,6.16222241]
[1755498476877,5.512,181.31,181.26,5.5131]
[1755498477076,2.88,181.29,181.26,5.5131]
[1755498477776,2.88,181.29,181.23,1.6]
[1755498477980,2.88,181.27,181.21,6.16222241]
[1755498478680,2.88,181.26,181.22,1.6]
[1755498478875,10.68358663,181.35,181.23,1.6]
[1755498479075,2.88,181.28,181.24,5.5137]
[1755498479475,2.88,181.28,181.24,1.6]
[1755498479676,2.88,181.27,181.21,4.56222241]
[1755498479874,5.5119,181.31,181.25,1.6]
[1755498480081,2.88,181.26,181.25,5.5136]
[1755498480882,2.88,181.26,181.24,5.5139]
[1755498481077,2.88,181.26,181.22,1.6]
[1755498481280,2.88,181.26,181.21,4.56222241]
[1755498481481,2.88,181.26,181.21,6.16222241]
[1755498481784,2.88,181.26,181.22,1.6]
[1755498482076,2.88,181.28,181.22,1.6]
[1755498482287,2.88,181.33,181.22,1.6]
[1755498482580,5.5121,181.3,181.26,5.5133]
[1755498482881,2.88,181.28,181.26,5.5133]
[1755498483480,2.88,181.3,181.27,5.513]
[1755498483682,4.26236041,181.29,181.27,5.513]
[1755498483883,7.14236041,181.28,181.27,5.513]
[1755498484472,2.88,181.27,181.26,5.5132]
[1755498484894,2.88,181.29,181.27,5.5128]
[1755498485181,2.88,181.27,181.21,4.56222241]
[1755498485778,6.12136422,181.34,181.23,5.514]
[1755498485986,2.88,181.32,181.21,4.56222241]
[1755498486184,2.88,181.3,181.18,6.16222241]
[1755498486377,10.68358663,181.32,181.21,5.5147]
[1755498486378,5.5134,181.26,181.21,5.5147]
[1755498486682,2.88,181.24,181.21,5.5147]
[1755498486876,2.88,181.23,181.13,145.84]
[1755498487081,2.88,181.23,181.16,4.56222241]
[1755498487284,2.88,181.23,181.17,1.6]
[1755498487479,2.88,181.23,181.18,1.6]
[1755498487984,2.88,181.23,181.2,5.5149]
[1755498489081,2.88,181.23,181.16,6.16222241]
[1755498489584,2.88,181.23,181.17,1.6]
[1755498490184,2.88,181.23,181.19,5.5152]
[1755498490583,2.88,181.23,181.17,1.6]
[1755498492180,2.88,181.25,181.22,5.5145]
[1755498492385,2.88,181.31,181.21,4.56222241]
[1755498492684,2.88,181.29,181.19,1.6]
[1755498492889,4.25758409,181.28,181.19,1.6]
[1755498493086,2.88,181.26,181.19,1.6]
[1755498493286,2.88,181.24,181.17,6.16222241]
[1755498493986,6.12136422,181.31,181.2,4.56222241]
[1755498494182,2.88,181.23,181.21,1.6]
[1755498494387,2.88,181.3,181.2,4.56222241]
[1755498494587,5.5135,181.26,181.21,5.5146]
[1755498494788,4.25672747,181.25,181.21,5.5146]
[1755498495080,4.25672747,181.24,181.21,5.5146]
[1755498495287,2.88,181.24,181.2,5.5151]
[1755498495490,2.88,181.24,181.17,4.56222241]
[1755498495681,2.88,181.21,181.16,5.5163]
[1755498496080,2.88,181.21,181.14,6.16222241]
[1755498496288,5.5151,181.2,181.16,5.5163]
[1755498496484,2.88,181.19,181.14,6.16222241]
[1755498496990,2.88,181.19,181.14,4.56222241]
[1755498497390,5.5157,181.19,181.15,5.5166]
[1755498497587,6.12136422,181.26,181.14,1.6]
[1755498497893,5.5152,181.2,181.16,5.5162]
[1755498498091,2.88,181.19,181.16,5.5162]
[1755498498283,2.88,181.19,181.15,1.6]
[1755498498486,2.88,181.19,181.16,5.5163]
[1755498498791,2.88,181.19,181.13,152.00222241]
[1755498498980,8.3956,181.19,181.15,5.5166]
[1755498499186,2.88,181.18,181.15,5.5166]
[1755498499689,2.88,181.18,181.16,5.5163]
[1755498499884,5.5153,181.2,181.13,4.56222241]
[1755498500085,2.88,181.18,181.15,5.5166]
[1755498500488,2.88,181.26,181.14,1.6]
[1755498500688,5.5153,181.2,181.16,5.5161]
[1755498500885,2.88,181.19,181.16,5.5161]
[1755498501089,2.88,181.19,181.13,4.56222241]
[1755498501691,2.88,181.17,181.15,5.5165]
[1755498501993,2.88,181.16,181.15,5.5165]
[1755498502696,3.01,181.26,181.15,1.59]
[1755498502887,5.515,181.21,181.15,1.59]
[1755498503092,3.01,181.26,181.15,1.59]
[1755498503298,3.01,181.24,181.13,6.15222241]
[1755498503494,5.5157,181.19,181.16,5.5163]
[1755498503692,3.01,181.18,181.13,6.15222241]
[1755498504194,3.01,181.17,181.11,1.59]
[1755498504800,5.5166,181.16,181.13,5.517]
[1755498504984,3.01,181.23,181.11,1.59]
[1755498505292,3.01,181.21,181.11,1.59]
[1755498505499,3.01,181.21,181.09,4.56222241]
[1755498505500,3.01,181.15,181.1,1.59]
[1755498505797,3.01,181.14,181.1,1.59]
[1755498506193,3.01,181.13,181.09,4.56222241]
[1755498506501,3.01,181.13,181.08,147.35]
[1755498506792,3.01,181.13,181.08,143.76]
[1755498507095,3.01,181.18,181.13,5.5172]
[1755498507298,3.01,181.18,181.09,4.56222241]
[1755498507601,3.01,181.18,181.12,5.5174]
[1755498507796,3.01,181.18,181.11,1.59]
[1755498507797,3.01,181.18,181.09,6.15222241]
[1755498507995,4.24758662,181.17,181.09,1.59]
[1755498508202,3.01,181.16,181.08,143.76]
[1755498508497,3.01,181.16,181.09,1.59]
[1755498508895,3.01,181.16,181.09,7.1082]
[1755498509398,3.01,181.16,181.09,5.5182]
[1755498509602,3.01,181.16,181.04,4.56222241]
[1755498510000,3.01,181.16,181.04,6.15222241]
[1755498510197,4.24347309,181.15,181.04,6.15222241]
[1755498510405,3.01,181.14,181.04,6.15222241]
[1755498510696,3.01,181.14,181.04,1.59]
[1755498511294,3.01,181.14,181.06,5.5192]
[1755498512197,3.01,181.12,181.01,147.31]
[1755498512590,4.56222241,181.13,181.01,147.31]
[1755498512591,3.01,181.1,181.01,147.31]
[1755498512792,3.01,181.1,181.01,1.59]
[1755498512992,4.23404213,181.09,181.0,5.5212]
[1755498513199,3.01,181.08,180.99,1.59]
[1755498513598,3.01,181.08,181.0,5.521]
[1755498514193,3.01,181.01,180.99,7.1115]
[1755498514499,3.01,181.0,180.99,5.5215]
[1755498514700,3.01,181.0,180.97,5.522]
[1755498514899,3.01,181.05,180.95,1.59]
[1755498515103,3.01,181.05,180.98,1.59]
[1755498515599,3.01,181.05,180.99,6.15222241]
[1755498515796,3.01,181.05,180.99,1.59]
[1755498516004,3.01,181.05,180.97,1.59]
[1755498516192,3.01,181.05,180.93,4.56222241]
[1755498516391,3.01,181.05,180.95,1.59]
[1755498516798,3.01,181.03,180.95,1.59]
[1755498517092,3.01,181.03,180.93,6.15222241]
[1755498517306,3.01,181.01,180.94,1.59]
[1755498517500,3.01,181.03,180.97,1.59]
[1755498517796,3.01,181.03,180.92,1.59]
[1755498517996,3.01,181.01,180.9,1.59]
[1755498518194,3.01,181.01,180.92,4.56222241]
[1755498518394,3.01,181.01,180.95,4.56222241]
[1755498518598,3.01,181.01,180.96,1.59]
[1755498518796,3.01,181.02,180.98,4.56222241]
[1755498519000,3.01,181.1,180.99,1.59]
[1755498519196,3.01,181.08,180.99,1.59]
[1755498519393,3.01,181.06,180.99,1.59]
[1755498519597,370.78,181.13,181.04,4.56222241]
[1755498519810,145.72,181.18,181.07,4.56222241]
[1755498520003,7.22597229,181.17,181.07,6.15222241]
[1755498520200,7.22597229,181.16,181.1,4.56222241]
[1755498520401,145.72,181.18,181.1,4.56222241]
[1755498520602,3.01,181.16,181.12,1.59]
[1755498520905,3.01,181.17,181.14,1.59]
[1755498521213,111.72809159,181.2,181.15,1.59]
[1755498521404,7.21667744,181.19,181.13,6.15222241]
[1755498521711,3.01,181.19,181.13,1.59]
[1755498521905,3.01,181.18,181.15,1.59]
[1755498522301,370.92,181.23,181.15,1.59]
[1755498522505,3.01,181.17,181.15,1.59]
[1755498522801,3.01,181.2,181.12,7.1075]
[1755498523203,3.01,181.2,181.12,1.59]
[1755498523403,3.01,181.22,181.08,1.59]
[1755498523708,3.01,181.2,181.08,1.59]
[1755498523903,3.01,181.2,181.11,7.10135783]
[1755498524103,3.01,181.22,181.15,7.10135783]
[1755498524406,5.5149,181.21,181.16,1.59]
[1755498524606,6.12136422,181.31,181.16,1.59]
[1755498524809,3.01,181.18,181.12,7.10135783]
[1755498525005,5.5161,181.17,181.13,1.59]
[1755498525202,152.82135783,181.32,181.09,1.59]
[1755498525203,3.01,181.27,181.09,1.59]
[1755498525511,5.5179,181.11,181.06,1.59]
[1755498525706,3.01,181.1,181.07,1.59]
[1755498526110,3.01,181.19,181.05,370.86]
[1755498526404,145.68,181.22,181.05,370.86]
[1755498526405,3.01,181.17,181.06,7.10135783]
[1755498526596,5.5167,181.15,181.07,1.59]
[1755498526802,3.01,181.17,181.11,1.59]
[1755498527209,3.01,181.17,181.1,7.10135783]
[1755498527409,3.01,181.19,181.13,1.59]
[1755498529120,3.01,181.21,181.16,5.5162]
[1755498529322,3.01,181.22,181.14,7.10135783]
[1755498529617,3.01,181.22,181.15,1.59]
[1755498529914,3.01,181.18,181.15,1.59]
[1755498530217,3.01,181.18,181.14,1.59]
[1755498530412,6.12136422,181.28,181.12,1.59]
[1755498530615,6.12136422,181.25,181.08,7.10135783]
[1755498530809,3.01,181.23,181.1,1.59]
[1755498531007,3.01,181.21,181.06,145.66]
[1755498531311,3.01,181.19,181.07,1.59]
[1755498531613,3.01,181.17,181.09,1.59]
[1755498532007,2.9,181.16,181.13,1.59]
[1755498532211,2.9,181.2,181.12,7.10135783]
[1755498532410,2.9,181.2,181.13,1.6]
[1755498533213,2.9,181.2,181.17,7.116]
[1755498533611,2.9,181.19,181.17,1.6]
[1755498533811,2.9,181.19,181.13,1.6]
[1755498535220,6.12136422,181.29,181.14,5.5169]
[1755498535521,2.9,181.27,181.14,7.1169]
[1755498535717,2.9,181.25,181.14,7.1169]
[1755498536024,4.20843118,181.26,181.12,7.10135783]
[1755498536025,2.9,181.23,181.13,1.6]
[1755498536725,2.9,181.23,181.15,5.5166]
[1755498536924,2.9,181.23,181.13,1.6]
[1755498538520,2.9,181.23,181.18,5.5155]
[1755498538720,2.9,181.22,181.19,1.6]
[1755498538918,2.9,181.31,181.19,1.6]
[1755498539123,2.9,181.29,181.19,7.1152]
[1755498539326,2.9,181.27,181.16,1.6]
[1755498539527,2.9,181.25,181.17,5.5158]
[1755498539724,2.9,181.25,181.16,1.6]
[1755498540516,2.9,181.25,181.17,1.6]
[1755498541718,2.9,181.25,181.2,5.5149]
[1755498542021,2.9,181.25,181.17,1.6]
[1755498542422,2.9,181.25,181.18,1.6]
[1755498542923,371.8203179,181.34,181.16,7.10135783]
[1755498543226,2.9,181.32,181.17,1.6]
[1755498543424,2.9,181.3,181.17,1.6]
[1755498543627,2.9,181.28,181.24,5.5137]
[1755498543827,2.9,181.28,181.21,1.6]
[1755498544320,2.9,181.28,181.25,5.5135]
[1755498544729,5.5123,181.3,181.25,5.5135]
[1755498544923,2.9,181.26,181.25,5.5135]
[1755498545131,2.9,181.33,181.21,1.6]
[1755498545333,2.9,181.33,181.25,1.6]
[1755498545634,2.9,181.33,181.3,5.5121]
[1755498546031,2.9,181.33,181.27,1.6]
[1755498546228,2.9,181.35,181.27,1.6]
[1755498546825,106.96766455,181.38,181.24,7.10135783]
[1755498547026,2.9,181.37,181.29,1.6]
[1755498547329,145.54,181.43,181.37,5.5098]
[1755498547530,4.19706337,181.42,181.37,5.5098]
[1755498547734,2.9,181.41,181.37,5.5098]
[1755498548329,2.9,181.41,181.35,1.6]
[1755498548836,2.9,181.46,181.35,1.6]
[1755498549134,2.9,181.46,181.36,1.6]
[1755498549338,2.9,181.44,181.39,5.5094]
[1755498549535,2.9,181.44,181.38,1.6]
[1755498550138,2.9,181.44,181.36,1.6]
[1755498550638,2.9,181.43,181.36,1.6]
[1755498550938,2.9,181.43,181.32,7.10135783]
[1755498550939,2.9,181.43,181.37,1.6]
[1755498551135,5.5077,181.45,181.39,5.5091]
[1755498551336,2.9,181.41,181.39,5.5091]
[1755498551638,2.9,181.41,181.39,5.5093]
[1755498551835,2.9,181.41,181.32,7.10135783]
[1755498552137,5.507,181.47,181.42,5.5083]
[1755498552333,2.9,181.46,181.39,1.6]
[1755498552735,2.9,181.46,181.41,5.5085]